fUSD/lending_fUSD_20250207
["ID","MTS","AMOUNT","RATE_DAILY","PERIOD"]
[352035849,1738891853379,-500.0,0.00016849,2]
[352035850,1738891853392,-500.0,0.00016849,2]
[352035851,1738891853402,-500.0,0.00016849,2]
[352035852,1738891853411,-500.0,0.00016849,2]
[352035853,1738891853422,-214.19,0.00016849,2]
[352035854,1738891853432,-500.0,0.00016849,2]
[352035855,1738891853443,-500.0,0.00016849,2]
[352035856,1738891853452,-500.0,0.00016849,2]
[352035857,1738891853464,-500.0,0.00016849,2]
[352035858,1738891853473,-500.0,0.00016849,2]
[352035859,1738891853484,-500.0,0.00016849,2]
[352035860,1738891853496,-500.0,0.00016849,2]
[352035861,1738891853506,-500.0,0.00016849,2]
[352035862,1738891853516,-642.16,0.00016849,2]
[352035863,1738891853527,-500.0,0.00016849,2]
[352035864,1738891853536,-500.0,0.00016849,2]
[352035865,1738891853546,-267.13,0.00016849,2]
[352035866,1738891853556,-500.0,0.00016849,2]
[352035867,1738891853567,-500.0,0.00016849,2]
[352035868,1738891853578,-436.61489818,0.00016849,2]
[352035869,1738891853588,-500.0,0.00016849,2]
[352035870,1738891853599,-500.0,0.00016849,2]
[352035871,1738891853610,-340.0,0.00016849,2]
[352035872,1738891853620,-345.09,0.00016849,2]
[352035873,1738891853631,-500.0,0.00016849,2]
[352035874,1738891853648,-630.51082486,0.00016849,2]
[352035875,1738891853659,-500.0,0.00016849,2]
[352035876,1738891853670,-500.0,0.00016849,2]
[352035877,1738891853680,-500.0,0.00016849,2]
[352035878,1738891853690,-211.76,0.00016849,2]
[352035879,1738891853701,-500.0,0.00016849,2]
[352035880,1738891853714,-500.0,0.00016849,2]
[352035881,1738891853725,-500.0,0.00016849,2]
[352035882,1738891853735,-500.0,0.00016849,2]
[352035883,1738891853746,-500.0,0.00016849,2]
[352035884,1738891853756,-500.0,0.00016849,2]
[352035885,1738891853767,-500.0,0.00016849,2]
[352035886,1738891853778,-500.0,0.00016849,2]
[352035887,1738891853788,-500.0,0.00016849,2]
[352035888,1738891853798,-500.0,0.00016849,2]
[352035889,1738891853809,-500.0,0.00016849,2]
[352035890,1738891853819,-323.6,0.00016849,2]
[352035891,1738891853829,-500.0,0.00016849,2]
[352035892,1738891853839,-632.41,0.00016849,2]
[352035893,1738891853849,-500.0,0.00016849,2]
[352035894,1738891853859,-610.95,0.00016849,2]
[352035895,1738891853869,-344.22,0.00016849,2]
[352035896,1738891853879,-500.0,0.00016849,2]
[352035897,1738891853890,-500.0,0.00016849,2]
[352035898,1738891853901,-500.0,0.00016849,2]
[352035899,1738891853910,-500.0,0.00016849,2]
[352035900,1738891853920,-500.0,0.00016849,2]
[352035901,1738891853931,-500.0,0.00016849,2]
[352035902,1738891853941,-500.0,0.00016849,2]
[352035903,1738891853953,-388.47,0.00016849,2]
[352035904,1738891853966,-500.0,0.00016849,2]
[352035905,1738891853976,-500.0,0.00016849,2]
[352035906,1738891853986,-500.0,0.00016849,2]
[352035907,1738891853997,-500.0,0.00016849,2]
[352035908,1738891854007,-500.0,0.00016849,2]
[352035909,1738891854018,-500.0,0.00016849,2]
[352035910,1738891854027,-595.3,0.00016849,2]
[352035911,1738891854037,-500.0,0.00016849,2]
[352035912,1738891854048,-500.0,0.00016849,2]
[352035913,1738891854058,-500.0,0.00016849,2]
[352035914,1738891854071,-500.0,0.00016849,2]
[352035915,1738891854081,-500.0,0.00016849,2]
[352035916,1738891854092,-506.05,0.00016849,2]
[352035917,1738891854102,-500.0,0.00016849,2]
[352035918,1738891854112,-500.0,0.00016849,2]
[352035919,1738891854122,-539.2,0.00016849,2]
[352035920,1738891854132,-500.0,0.00016849,2]
[352035921,1738891854142,-500.0,0.00016849,2]
[352035922,1738891854152,-500.0,0.00016849,2]
[352035923,1738891854163,-179.05291371,0.00016849,2]
[352035924,1738891854173,-500.0,0.00016849,2]
[352035925,1738891854183,-500.0,0.00016849,2]
[352035926,1738891854192,-500.0,0.00016849,2]
[352035927,1738891854203,-500.0,0.00016849,2]
[352035928,1738891854214,-300.07,0.00016849,2]
[352035929,1738891854224,-500.0,0.00016849,2]
[352035930,1738891854234,-365.61,0.00016849,2]
[352035931,1738891854244,-500.0,0.00016849,2]
[352035932,1738891854254,-500.0,0.00016849,2]
[352035933,1738891854264,-500.0,0.00016849,2]
[352035934,1738891854275,-500.0,0.00016849,2]
[352035935,1738891854285,-500.0,0.00016849,2]
[352035936,1738891854296,-154.95,0.00016849,2]
[352035937,1738891854307,-500.0,0.00016849,2]
[352035938,1738891854317,-500.0,0.00016849,2]
[352035939,1738891854327,-500.0,0.00016849,2]
[352035940,1738891854337,-500.0,0.00016849,2]
[352035941,1738891854347,-500.0,0.00016849,2]
[352035942,1738891854356,-500.0,0.00016849,2]
[352035943,1738891854366,-500.0,0.00016849,2]
[352035944,1738891854376,-500.0,0.00016849,2]
[352035945,1738891854386,-543.62,0.00016849,2]
[352035946,1738891854396,-500.0,0.00016849,2]
[352035947,1738891854405,-500.0,0.00016849,2]
[352035948,1738891854415,-500.0,0.00016849,2]
[352035949,1738891854425,-500.0,0.00016849,2]
[352035950,1738891854434,-610.94,0.00016849,2]
[352035951,1738891854444,-500.0,0.00016849,2]
[352035952,1738891854453,-466.21,0.00016849,2]
[352035953,1738891854463,-500.0,0.00016849,2]
[352035954,1738891854473,-726.65,0.00016849,2]
[352035955,1738891854483,-500.0,0.00016849,2]
[352035956,1738891854494,-500.0,0.00016849,2]
[352035957,1738891854505,-621.44,0.00016849,2]
[352035958,1738891854515,-500.0,0.00016849,2]
[352035959,1738891854525,-500.0,0.00016849,2]
[352035960,1738891854535,-500.0,0.00016849,2]
[352035961,1738891854544,-500.0,0.00016849,2]
[352035962,1738891854554,-500.0,0.00016849,2]
[352035963,1738891854565,-500.0,0.00016849,2]
[352035964,1738891854575,-500.0,0.00016849,2]
[352035965,1738891854586,-500.0,0.00016849,2]
[352035966,1738891854595,-500.0,0.00016849,2]
[352035967,1738891854604,-500.0,0.00016849,2]
[352035968,1738891854614,-790.9,0.00016849,2]
[352035969,1738891854624,-529.66,0.00016849,2]
[352035970,1738891854634,-500.0,0.00016849,2]
[352035971,1738891854644,-503.25,0.00016849,2]
[352035972,1738891854654,-500.0,0.00016849,2]
[352035973,1738891854664,-500.0,0.00016849,2]
[352035974,1738891854674,-240.76,0.00016849,2]
[352035975,1738891854684,-500.8,0.00016849,2]
[352035976,1738891854694,-500.0,0.00016849,2]
[352035977,1738891854704,-500.0,0.00016849,2]
[352035978,1738891854715,-526.09,0.00016849,2]
[352035979,1738891854725,-500.0,0.00016849,2]
[352035980,1738891854735,-500.0,0.00016849,2]
[352035981,1738891854745,-500.0,0.00016849,2]
[352035982,1738891854755,-500.0,0.00016849,2]
[352035983,1738891854764,-500.0,0.00016849,2]
[352035984,1738891854774,-568.75,0.00016849,2]
[352035985,1738891854784,-723.88,0.00016849,2]
[352035986,1738891854794,-500.0,0.00016849,2]
[352035987,1738891854804,-500.0,0.00016849,2]
[352035988,1738891854813,-500.0,0.00016849,2]
[352035989,1738891854823,-632.1,0.00016849,2]
[352035990,1738891854833,-422.6,0.00016849,2]
[352035991,1738891854843,-500.0,0.00016849,2]
[352035992,1738891854853,-2455.05,0.00016849,2]
[352035993,1738891854862,-500.0,0.00016849,2]
[352035994,1738891854872,-500.0,0.00016849,2]
[352035995,1738891854882,-500.0,0.00016849,2]
[352035996,1738891854891,-1078.11,0.00016849,2]
[352035997,1738891854901,-554.71,0.00016849,2]
[352035998,1738891854911,-743.03,0.00016849,2]
[352035999,1738891854921,-500.0,0.00016849,2]
[352036000,1738891854931,-500.0,0.00016849,2]
[352036001,1738891854941,-500.0,0.00016849,2]
[352036002,1738891854951,-914.09,0.00016849,2]
[352036003,1738891854965,-1005.93,0.00016849,2]
[352036004,1738891854975,-500.0,0.00016849,2]
[352036005,1738891854985,-547.37615183,0.00016849,2]
[352036006,1738891855032,-2200.49300248,0.00016438,2]
[352036007,1738891855045,-306.84763679,0.00016438,2]
[352036008,1738891855657,-547.88936073,0.00016438,2]
[352036009,1738891855667,-3055.23,0.00016575,2]
[352036010,1738891855677,-500.0,0.00016712,2]
[352036011,1738891855687,-3055.23,0.00016712,2]
[352036012,1738891855697,-36.18384817,0.00016849,2]
[352036013,1738891855707,-500.0,0.00016849,2]
[352036014,1738891855717,-956.66,0.00016849,2]
[352036015,1738891855727,-10.00770691,0.00016849,2]
[352036016,1738891855739,-465.5659296,0.00016849,2]
[352036017,1738891855751,-117.74636349,0.00016849,2]
[352036018,1738891855762,-767.71730071,0.00016849,2]
[352036019,1738891856639,-260.51,0.00016849,2]
[352036020,1738891856651,-78.68269929,0.00016849,2]
[352036021,1738891856660,-178.14,0.00016849,2]
[352036022,1738891856672,-500.0,0.00016849,2]
[352036023,1738891856682,-739.72,0.00016849,2]
[352036024,1738891856703,-500.0,0.00016849,2]
[352036025,1738891856718,-42.05730071,0.00016849,2]
[352036026,1738891856733,-531.70269929,0.00016849,2]
[352036027,1738891856744,-744.8,0.00016849,2]
[352036028,1738891856756,-857.32,0.00016849,2]
[352036029,1738891856767,-500.0,0.00016849,2]
[352036030,1738891856777,-604.79,0.00016849,2]
[352036031,1738891856787,-276.24826899,0.00016849,2]
[352036032,1738891856799,-463.45,0.00016849,2]
[352036033,1738891856812,-781.43173101,0.00016849,2]
[352036034,1738891856822,-1059.01,0.00016849,2]
[352036035,1738891856832,-649.01,0.00016849,2]
[352036036,1738891856842,-1014.75,0.00016849,2]
[352036037,1738891856852,-500.0,0.00016849,2]
[352036038,1738891856863,-296.63,0.00016849,2]
[352036039,1738891856873,-500.0,0.00016849,2]
[352036040,1738891856883,-627.69,0.00016849,2]
[352036041,1738891856892,-500.0,0.00016849,2]
[352036042,1738891856902,-500.0,0.00016849,2]
[352036043,1738891856912,-828.69,0.00016849,2]
[352036044,1738891856922,-545.06,0.00016849,2]
[352036045,1738891856932,-500.0,0.00016849,2]
[352036046,1738891856941,-500.0,0.00016849,2]
[352036047,1738891856952,-500.0,0.00016849,2]
[352036048,1738891856965,-2044.42,0.00016849,2]
[352036049,1738891856975,-500.0,0.00016849,2]
[352036050,1738891856985,-500.0,0.00016849,2]
[352036051,1738891856996,-500.0,0.00016849,2]
[352036052,1738891857006,-500.0,0.00016849,2]
[352036053,1738891857016,-1240.11,0.00016849,2]
[352036054,1738891857026,-873.51,0.00016849,2]
[352036055,1738891857036,-500.0,0.00016849,2]
[352036056,1738891857046,-500.0,0.00016849,2]
[352036057,1738891857056,-851.17,0.00016849,2]
[352036058,1738891857067,-1290.66,0.00016849,2]
[352036059,1738891857076,-500.0,0.00016849,2]
[352036060,1738891857086,-500.0,0.00016849,2]
[352036061,1738891857096,-1092.65,0.00016849,2]
[352036062,1738891857106,-1808.83,0.00016849,2]
[352036063,1738891857115,-500.0,0.00016849,2]
[352036064,1738891857125,-1000.0,0.00016849,2]
[352036065,1738891857135,-794.89,0.00016849,2]
[352036066,1738891857145,-1264.71,0.00016849,2]
[352036067,1738891857155,-975.86,0.00016849,2]
[352036068,1738891857164,-500.0,0.00016849,2]
[352036069,1738891857174,-863.62,0.00016849,2]
[352036070,1738891857184,-1311.47,0.00016849,2]
[352036071,1738891857193,-1084.15,0.00016849,2]
[352036072,1738891857203,-500.0,0.00016849,2]
[352036073,1738891857215,-500.0,0.00016849,2]
[352036074,1738891857227,-500.0,0.00016849,2]
[352036075,1738891857237,-500.0,0.00016849,2]
[352036076,1738891857246,-500.0,0.00016849,2]
[352036077,1738891857255,-1214.06,0.00016849,2]
[352036078,1738891857265,-500.0,0.00016849,2]
[352036079,1738891857275,-500.0,0.00016849,2]
[352036080,1738891857284,-949.27,0.00016849,2]
[352036081,1738891857297,-1004.21,0.00016849,2]
[352036082,1738891857313,-500.0,0.00016849,2]
[352036083,1738891857323,-500.0,0.00016849,2]
[352036084,1738891857333,-1041.39,0.00016849,2]
[352036085,1738891857343,-500.0,0.00016849,2]
[352036086,1738891857352,-1554.12,0.00016849,2]
[352036087,1738891857363,-832.98,0.00016849,2]
[352036088,1738891857373,-500.0,0.00016849,2]
[352036089,1738891857383,-500.0,0.00016849,2]
[352036090,1738891857392,-575.57,0.00016849,2]
[352036091,1738891857402,-971.04,0.00016849,2]
[352036092,1738891857411,-828.01,0.00016849,2]
[352036093,1738891857422,-1162.45,0.00016849,2]
[352036094,1738891857431,-541.25,0.00016849,2]
[352036095,1738891857441,-1285.61117562,0.00016849,2]
[352036096,1738891857474,-54.60882438,0.00016849,2]
[352036097,1738891857484,-500.0,0.00016849,2]
[352036098,1738891857495,-500.0,0.00016849,2]
[352036099,1738891857505,-821.54089562,0.00016849,2]
[352036100,1738891857517,-332.5275168,0.00016849,2]
[352036101,1738891857528,-391.596,0.00016849,2]
[352036102,1738891857540,-206.66558758,0.00016849,2]
[352036103,1738891857550,-500.0,0.00016849,2]
[352036104,1738891857560,-693.12840333,0.00016849,2]
[352036105,1738891857604,-234.58159667,0.00016849,2]
[352036106,1738891857614,-229.33281874,0.00016849,2]
[352036107,1738891857668,-2743.64718126,0.00016849,2]
[352036108,1738891857678,-869.48,0.00016849,2]
[352036109,1738891857689,-871.64,0.00016849,2]
[352036110,1738891857699,-1755.62,0.00016849,2]
[352036111,1738891857711,-500.0,0.00016849,2]
[352036112,1738891857721,-500.0,0.00016849,2]
[352036113,1738891857731,-640.21011767,0.00016849,2]
[352036114,1738891857741,-500.0,0.00016849,2]
[352036115,1738891857751,-500.0,0.00016849,2]
[352036116,1738891857762,-701.5,0.00016849,2]
[352036117,1738891857772,-500.0,0.00016849,2]
[352036118,1738891857782,-1478.42,0.00016849,2]
[352036119,1738891857792,-1555.2,0.00016849,2]
[352036120,1738891857802,-456.49182007,0.00016849,2]
[352036121,1738891857812,-809.23,0.00016849,2]
[352036122,1738891857823,-500.0,0.00016849,2]
[352036123,1738891857833,-1405.48,0.00016849,2]
[352036124,1738891857843,-535.43,0.00016849,2]
[352036125,1738891857854,-500.0,0.00016849,2]
[352036126,1738891857864,-500.0,0.00016849,2]
[352036127,1738891857874,-500.0,0.00016849,2]
[352036128,1738891857884,-1469.96,0.00016849,2]
[352036129,1738891857894,-500.0,0.00016849,2]
[352036130,1738891857904,-500.0,0.00016849,2]
[352036131,1738891857913,-802.09,0.00016849,2]
[352036132,1738891857923,-500.0,0.00016849,2]
[352036133,1738891857933,-1545.02,0.00016849,2]
[352036134,1738891857943,-500.0,0.00016849,2]
[352036135,1738891857953,-1249.08,0.00016849,2]
[352036136,1738891857965,-809.86,0.00016849,2]
[352036137,1738891857975,-1664.37,0.00016849,2]
[352036138,1738891857985,-500.0,0.00016849,2]
[352036139,1738891857995,-500.0,0.00016849,2]
[352036140,1738891858005,-500.0,0.00016849,2]
[352036141,1738891858015,-601.3,0.00016849,2]
[352036142,1738891858025,-500.0,0.00016849,2]
[352036143,1738891858037,-1956.41,0.00016849,2]
[352036144,1738891858047,-855.96,0.00016849,2]
[352036145,1738891858057,-3154.16,0.00016849,2]
[352036146,1738891858067,-500.0,0.00016849,2]
[352036147,1738891858077,-500.0,0.00016849,2]
[352036148,1738891858086,-500.0,0.00016849,2]
[352036149,1738891858096,-500.0,0.00016849,2]
[352036150,1738891858106,-500.0,0.00016849,2]
[352036151,1738891858116,-500.0,0.00016849,2]
[352036152,1738891858125,-1185.11,0.00016849,2]
[352036153,1738891858135,-500.0,0.00016849,2]
[352036154,1738891858144,-1040.84,0.00016849,2]
[352036155,1738891858154,-500.0,0.00016849,2]
[352036156,1738891858164,-1478.69,0.00016849,2]
[352036157,1738891858173,-500.0,0.00016849,2]
[352036158,1738891858182,-500.0,0.00016849,2]
[352036159,1738891858191,-690.83,0.00016849,2]
[352036160,1738891858201,-500.0,0.00016849,2]
[352036161,1738891858213,-500.0,0.00016849,2]
[352036162,1738891858222,-500.0,0.00016849,2]
[352036163,1738891858231,-555.50286006,0.00016849,2]
[352036164,1738891858241,-500.0,0.00016849,2]
[352036165,1738891858254,-500.0,0.00016849,2]
[352036166,1738891858265,-2562.17,0.00016849,2]
[352036167,1738891858275,-1290.1,0.00016849,2]
[352036168,1738891858284,-500.0,0.00016849,2]
[352036169,1738891858294,-500.0,0.00016849,2]
[352036170,1738891858393,-500.0,0.00016849,2]
[352036171,1738891858403,-911.96,0.00016849,2]
[352036172,1738891858412,-500.0,0.00016849,2]
[352036173,1738891858422,-970.24,0.00016849,2]
[352036174,1738891858432,-534.51,0.00016849,2]
[352036175,1738891858441,-500.0,0.00016849,2]
[352036176,1738891858450,-500.0,0.00016849,2]
[352036177,1738891858461,-500.0,0.00016849,2]
[352036178,1738891858471,-1791.15,0.00016849,2]
[352036179,1738891858482,-500.0,0.00016849,2]
[352036180,1738891858494,-1004.37,0.00016849,2]
[352036181,1738891858505,-767.89,0.00016849,2]
[352036182,1738891858515,-500.0,0.00016849,2]
[352036183,1738891858524,-500.0,0.00016849,2]
[352036184,1738891858534,-867.53,0.00016849,2]
[352036185,1738891858546,-500.0,0.00016849,2]
[352036186,1738891858555,-500.0,0.00016849,2]
[352036187,1738891858565,-500.0,0.00016849,2]
[352036188,1738891858575,-500.0,0.00016849,2]
[352036189,1738891858585,-500.0,0.00016849,2]
[352036190,1738891858594,-847.38,0.00016849,2]
[352036191,1738891858603,-500.0,0.00016849,2]
[352036192,1738891858613,-500.0,0.00016849,2]
[352036193,1738891858623,-500.0,0.00016849,2]
[352036194,1738891858632,-505.3723814,0.00016849,2]
[352036195,1738891858643,-246.80815984,0.00016849,2]
[352036196,1738891858652,-910.03,0.00016849,2]
[352036197,1738891858663,-1823.04,0.00016849,2]
[352036198,1738891858673,-500.0,0.00016849,2]
[352036199,1738891858683,-599.42968978,0.00016849,2]
[352036200,1738891858693,-925.64,0.00016849,2]
[352036201,1738891858704,-500.0,0.00016849,2]
[352036202,1738891858716,-500.0,0.00016849,2]
[352036203,1738891858726,-500.0,0.00016849,2]
[352036204,1738891858736,-500.0,0.00016849,2]
[352036205,1738891858746,-500.0,0.00016849,2]
[352036206,1738891858756,-661.56,0.00016849,2]
[352036207,1738891858766,-500.0,0.00016849,2]
[352036208,1738891858776,-1515.23,0.00016849,2]
[352036209,1738891858786,-743.56,0.00016849,2]
[352036210,1738891858796,-882.91,0.00016849,2]
[352036211,1738891858805,-500.0,0.00016849,2]
[352036212,1738891858815,-500.0,0.00016849,2]
[352036213,1738891858825,-500.0,0.00016849,2]
[352036214,1738891858834,-218.33676849,0.00016849,2]
[352036215,1738891858844,-3055.23,0.00016849,2]
[352036216,1738891858854,-2549.23467212,0.00016859,2]
[352036217,1738891858864,-150.0,0.0001686,2]
[352036218,1738891858874,-8084.83755485,0.0001688,2]
[352036219,1738891858885,-6500.0,0.000169,2]
[352036220,1738891858894,-6501.0,0.000169,2]
[352036221,1738891858904,-200.0,0.000169,3]
[352036222,1738891858914,-200.0,0.000169,4]
[352036223,1738891858923,-200.0,0.000169,5]
[352036224,1738891858933,-200.0,0.000169,6]
[352036225,1738891858943,-200.0,0.000169,7]
[352036226,1738891858953,-200.0,0.000169,7]
[352036227,1738891858965,-200.0,0.000169,10]
[352036228,1738891858974,-200.0,0.000169,3]
[352036229,1738891858984,-200.0,0.000169,4]
[352036230,1738891858994,-200.0,0.000169,5]
[352036231,1738891859004,-178.0,0.000169,5]
[352036232,1738891859016,-178.0,0.000169,6]
[352036233,1738891859026,-178.6,0.000169,7]
[352036234,1738891859036,-2778.13,0.000169,2]
[352036235,1738891859045,-192.286,0.000169,2]
[352036236,1738891859055,-150.0,0.00016915,2]
[352036237,1738891859064,-150.0,0.0001692,2]
[352036238,1738891859074,-7769.19375414,0.00016922,2]
[352036239,1738891859087,-22230.79624586,0.00016922,2]
[352036240,1738891859097,-11949.49983932,0.00016922,2]
[352036241,1738891859109,-535.02444576,0.00016922,2]
[352036242,1738891859120,-4775.55,0.00016922,2]
[352036243,1738891859186,-150.0,0.00015789,2]
[352036244,1738891859195,-372.88,0.00016438,2]
[352036245,1738891859204,-152.544955,0.00016922,2]
[352036246,1738891859218,-12587.37075992,0.00016922,2]
[352036247,1738891859227,-458.60318798,0.00016935,2]
[352036248,1738891859237,-151.97,0.00016938,2]
[352036249,1738891859246,-150.0,0.0001694,2]
[352036250,1738891859256,-570.79,0.00016973,2]
[352036251,1738891859265,-4733.8287807,0.00016974,2]
[352036252,1738891859275,-36.81812255,0.00016974,2]
[352036253,1738891859287,-289.937,0.00016974,2]
[352036254,1738891859430,-1443.64072596,0.00016974,2]
[352036255,1738891859441,-4475.60002,0.00016974,2]
[352036256,1738891859453,-8760.10057569,0.00016974,2]
[352036257,1738891859464,-6539.89942431,0.00016974,2]
[352036258,1738891859476,-327.32146933,0.00016974,2]
[352036259,1738891859490,-965.91086814,0.00016974,2]
[352036260,1738891859503,-1050.76466996,0.00016974,2]
[352036261,1738891859515,-585.0919994,0.00016974,2]
[352036262,1738891859526,-3869.48608226,0.00016974,2]
[352036263,1738891859537,-5332.0240461,0.00016976,2]
[352036264,1738891859546,-601.3287694,0.00016976,2]
[352036265,1738891859556,-300.0,0.00016985,2]
[352036266,1738891859567,-625.72826324,0.00016985,2]
[352036267,1738891859577,-37127.52933443,0.00016985,2]
[352036268,1738891860052,-556.45929939,0.00016438,2]
[352036269,1738891860062,-3413.13880158,0.00016985,2]
[352036270,1738891860077,-1458.0,0.00016985,2]
[352036271,1738891860092,-3334.5,0.00016985,2]
[352036272,1738891860106,-6253.399999,0.00016985,2]
[352036273,1738891860118,-83866.95030362,0.00016985,2]
[352036274,1738891860130,-257.36500011,0.00016985,2]
[352036275,1738891860162,-6422.04395849,0.00016985,2]
[352036277,1738892208471,6010.7688807,0.0002,120]
[352036511,1738893031655,-368.49929451,8.973e-05,2]
[352036513,1738893031799,-13275.47670549,8.973e-05,2]
[352036514,1738893031809,-229.78200409,0.00010037,2]
[352036515,1738893031819,-166.28,0.00010137,2]
[352036516,1738893031828,-241.91,0.00010137,2]
[352036517,1738893031838,-550.0,0.00013,2]
[352036518,1738893031847,-631.17,0.00013084,2]
[352036519,1738893031859,-1061.59576345,0.00014073,2]
[352036520,1738893031870,-23890.0,0.00014819,2]
[352036521,1738893031879,-222.45,0.0001487,2]
[352036522,1738893031889,-1000.0,0.0001489,2]
[352036523,1738893031898,-600.0,0.00015,2]
[352036524,1738893031908,-162.24,0.00015016,2]
[352036525,1738893031919,-374.9,0.00015135,2]
[352036526,1738893031928,-374.77,0.00015135,2]
[352036527,1738893031939,-375.38,0.00015135,2]
[352036528,1738893031948,-380.23,0.00015135,2]
[352036529,1738893031958,-368.83,0.00015135,2]
[352036530,1738893031968,-368.77,0.00015135,2]
[352036531,1738893031978,-500.0,0.00015135,2]
[352036532,1738893031987,-500.0,0.00015235,2]
[352036533,1738893031996,-500.0,0.00015335,2]
[352036534,1738893032006,-2203.46,0.00015342,3]
[352036535,1738893032016,-631.17,0.00015348,2]
[352036536,1738893032027,-500.0,0.00015412,2]
[352036537,1738893032036,-900.0,0.00015412,2]
[352036538,1738893032045,-500.0,0.00015435,2]
[352036539,1738893032055,-500.0,0.00015535,2]
[352036540,1738893032065,-2203.46,0.00015616,3]
[352036541,1738893032074,-152.85,0.00015635,2]
[352036542,1738893032083,-150.0,0.00015635,2]
[352036543,1738893032093,-500.0,0.00015635,2]
[352036544,1738893032102,-150.0,0.00015656,2]
[352036545,1738893032112,-500.0,0.00015735,2]
[352036546,1738893032121,-500.0,0.00015835,2]
[352036547,1738893032130,-2203.46,0.0001589,3]
[352036548,1738893032140,-500.0,0.00015935,2]
[352036549,1738893032150,-500.0,0.00016035,2]
[352036550,1738893032159,-500.0,0.00016135,2]
[352036551,1738893032171,-2203.46,0.00016164,3]
[352036552,1738893032181,-500.0,0.00016235,2]
[352036553,1738893032190,-500.0,0.00016335,2]
[352036554,1738893032199,-367.01172356,0.00016363,2]
[352036555,1738893032209,-1543.44329661,0.00016378,2]
[352036556,1738893032218,-500.0,0.00016435,2]
[352036557,1738893032228,-500.0,0.00016438,2]
[352036558,1738893032238,-527.27,0.00016438,2]
[352036559,1738893032247,-205.39088707,0.00016438,2]
[352036560,1738893032256,-500.0,0.00016438,2]
[352036561,1738893032265,-500.0,0.00016438,2]
[352036562,1738893032275,-500.0,0.00016438,2]
[352036563,1738893032284,-500.0,0.00016438,2]
[352036564,1738893032294,-500.0,0.00016438,2]
[352036565,1738893032303,-580.64720365,0.00016438,2]
[352036566,1738893032312,-500.0,0.00016438,2]
[352036567,1738893032321,-590.91408511,0.00016438,2]
[352036568,1738893032331,-500.0,0.00016438,2]
[352036569,1738893032340,-500.0,0.00016438,2]
[352036570,1738893032350,-505.25744869,0.00016438,2]
[352036571,1738893032359,-500.0,0.00016438,2]
[352036572,1738893032368,-500.0,0.00016438,2]
[352036573,1738893032378,-500.0,0.00016438,2]
[352036574,1738893032387,-500.0,0.00016438,2]
[352036575,1738893032396,-507.35396549,0.00016438,2]
[352036576,1738893032405,-500.0,0.00016438,2]
[352036577,1738893032415,-500.0,0.00016438,2]
[352036578,1738893032425,-500.0,0.00016438,2]
[352036579,1738893032435,-350.6004389,0.00016438,2]
[352036580,1738893032443,-500.0,0.00016438,2]
[352036581,1738893032453,-500.0,0.00016438,2]
[352036582,1738893032462,-500.0,0.00016438,2]
[352036583,1738893032472,-500.0,0.00016438,2]